Cogmind - Beta 13 @@@ ROGUE MODE // 2024.04.18 @ 10:12:55 Player: SovietPaperclip Result: Self-destructed Performance ------------- Evolutions (3) 1500 Regions Visited (5) 1000 Robots Destroyed (141) 705 Value Destroyed (4003) 4003 Prototype IDs (6) 120 Alien Tech Used (0) 0 Bonus (127) 127 TOTAL SCORE: 7455 Bonus ------- High Alert Combat Kills 127 Cogmind --------- Core Integrity 589/700 Matter 8/300 Energy 100/100 System Corruption 5% Temperature Cool (64) Movement Rolling (145) Ox3 Location -7/Factory Parts ------- > --- POWER (2) -------- (None) > --- PROPULSION (4) --- Armored Huge Wheel > --- UTILITY (4) ------ Huge Storage Unit Machine Analyzer Improved Signal Interpreter Hardened Medium Armor Plating > --- WEAPON (3) ------- Precision Assault Rifle Precision Assault Rifle Precision Assault Rifle > --- INVENTORY (25) --- Improved Deuterium Engine Armored Huge Wheel Improved Cooling System Improved Cooling System High-capacity Matter Pod (42) Experimental Sensor Array Improved Terrain Scanner Hardened Medium Armor Plating Improved Medium Armor Plating Hacking Suite Hacking Suite Hacking Suite System Shield Long-range Tractor Beam Wave Gun Wave Gun Wave Gun Enhanced Autogun Precision Assault Rifle Gauss Cannon Heavy Missile Launcher Plasma Cutter Flail Peak State ------------ > --- POWER ------------ Improved Deuterium Engine Improved Deuterium Engine > --- PROPULSION ------- Armored Huge Wheel Armored Huge Wheel > --- UTILITY ---------- Huge Storage Unit Machine Analyzer Experimental Sensor Array Improved Signal Interpreter > --- WEAPON ----------- Enhanced Autogun Enhanced Autogun Precision Assault Rifle > --- INVENTORY -------- Improved Deuterium Engine Armored Huge Wheel Improved Cooling System Improved Cooling System High-capacity Matter Pod Improved Terrain Scanner Hardened Medium Armor Plating Hardened Medium Armor Plating Improved Medium Armor Plating Hacking Suite Hacking Suite Hacking Suite System Shield Long-range Tractor Beam Wave Gun Wave Gun Wave Gun Precision Assault Rifle Precision Assault Rifle Precision Assault Rifle Gauss Cannon Heavy Missile Launcher Plasma Cutter Flail [Rating: 62] Favorites ----------- Power Reinforced Ion Engine Engine Reinforced Ion Engine Propulsion Light Treads Treads Light Treads Wheel Armored Huge Wheel Hover Unit Cooled Airjet Utility Huge Storage Unit Device Improved Heat Sink Storage Huge Storage Unit Processor Improved Signal Interpreter Protection Light Armor Plating Weapon Enhanced Autogun Ballistic Gun Enhanced Autogun Ballistic Cannon Gauss Cannon Launcher Grenade Launcher Impact Weapon Flail Build | -11 -10 -9 -9 -8 -7 ------- Run | Yrd Mat Mat Min Mat Fac Slots Evolved 6 | . . 2 . 2 2 Power 1 | . . . . . 1 Propulsion 2 | . . 1 . 1 . Utility 2 | . . 1 . 1 . Weapon 1 | . . . . . 1 Parts Attached 102 | 6 2 17 14 27 36 Power 10 | 1 1 . 1 3 4 Engine 10 | 1 1 . 1 3 4 Core . | . . . . . . Reactor . | . . . . . . Propulsion 21 | 2 . 6 2 7 4 Treads 17 | 2 . 6 2 6 1 Leg . | . . . . . . Wheel 3 | . . . . 1 2 Hover 1 | . . . . . 1 Flight . | . . . . . . Utility 35 | 1 1 4 1 8 20 Device 14 | . . 1 . 3 10 Storage 4 | 1 1 1 1 . . Processor 4 | . . . . . 4 Hackware . | . . . . . . Protection 13 | . . 2 . 5 6 Artifact . | . . . . . . Weapon 36 | 2 . 7 10 9 8 Energy Gun . | . . . . . . Energy Cannon . | . . . . . . Ballistic Gun 22 | 2 . 5 5 4 6 Ballistic Cannon 3 | . . . . 3 . Launcher 10 | . . 2 5 2 1 Special Weapon . | . . . . . . Impact Weapon 1 | . . . . . 1 Slashing Weapon . | . . . . . . Piercing Weapon . | . . . . . . Special Melee Weapon . | . . . . . . Unidentified Prototypes 6 | . . 1 . 4 1 Parts Lost 30 | . . 2 8 8 12 Power 4 | . . . 1 . 3 Propulsion 10 | . . 1 2 4 3 Utility 8 | . . 1 1 3 3 Weapon 8 | . . . 4 1 3 Highest Loss Streak 8 | . . 1 8 2 5 To Critical Strikes . | . . . . . . Average Slot Usage (%) 87 | . 85 90 89 91 82 Engine 11 | . 14 11 10 9 14 Treads 22 | . 28 29 32 30 4 Wheel 4 | . . . . 2 10 Device 7 | . . 7 3 8 9 Storage 11 | . 14 11 18 12 7 Processor 1 | . . . . . 5 Protection 6 | . . 8 3 9 5 Ballistic Gun 17 | . 28 21 20 5 21 Ballistic Cannon 3 | . . . . 12 . Naked Turns . | . . . . . . Heaviest Build 133 | 13 53 101 103 115 133 Greatest Support 80 | 40 40 60 60 80 56 Greatest Overweight (x) 5 | . 1 2 2 4 5 Average Overweight (x) 1 | . . . 1 1 2 Largest Inventory Capacity 25 | 8 20 25 25 25 25 Average Capacity 24 | 6 17 22 25 25 25 Most Carried 25 | 1 5 20 20 25 25 Average Carried 19 | . 4 13 15 22 24 Final Capacity 25 | 8 20 25 25 25 25 Final Carried 25 | 1 5 19 14 25 24 Class Distribution -------------------- 54% | Mutant 21% | Scavenger-Mutant 9% | Tank 8% | Skirmisher 3% | Scavenger-Tank Dominant Class ---------------- Mutant | -10/Materials Mutant | -9/Materials Mutant | -9/Mines Scavenger-Mutant | -8/Materials Tank | -7/Factory Resources | -11 -10 -9 -9 -8 -7 ----------- Run | Yrd Mat Mat Min Mat Fac Matter Collected 4226 | 189 313 569 622 1103 1430 Remotely 313 | . . . . . 313 Salvage Created 4574 | . 160 987 220 1330 1877 Parts 296 | . 15 77 10 93 101 Haulers Intercepted 10 | . . 4 . 5 1 Recyclers Shooed 4 | . . . . 3 1 Parts Field Recycled . | . . . . . . Retrieved Matter . | . . . . . . Parts Self-Destructed . | . . . . . . Prevented . | . . . . . . Kills | -11 -10 -9 -9 -8 -7 ------- Run | Yrd Mat Mat Min Mat Fac Combat Hostiles Destroyed 106 | . 6 22 21 29 28 Melee 2 | . . . . . 2 Guns 59 | . 6 16 9 3 25 Cannons 17 | . . . . 17 . AOE 28 | . . 6 12 9 1 Classes Destroyed 18 | . 3 7 2 3 3 Worker 7 | . . 1 . 2 4 Builder 8 | . . 3 . 2 3 Tunneler 2 | . . 1 . . 1 Hauler 10 | . . 4 . 5 1 Recycler 7 | . . . . 2 5 Mechanic 1 | . . . . 1 . Operator 3 | . . 1 . 2 . Watcher 11 | . 1 3 . 4 3 Swarmer 23 | . 4 7 2 6 4 Grunt 41 | . 2 10 3 12 14 Brawler 2 | . . 1 . 1 . Duelist 1 | . . . . . 1 Sentry 16 | . . 4 . 9 3 Demolisher 2 | . . . 2 . . Specialist 2 | . . . . . 2 Hunter 1 | . . . . 1 . Programmer 4 | . . . . . 4 Assembled 14 | . . . 14 . . Best Kill Streak 16 | . 3 16 10 9 10 Combat Bots Only 10 | . 3 8 10 7 10 Max Kills in Single Turn 5 | . 1 2 5 2 2 Gunslinging 1 | . . 1 . . . Exploded 5 | . . 2 5 2 1 Melee 1 | . . . . . 1 Uniques/NPCs Destroyed . | . . . . . . Combat | -11 -10 -9 -9 -8 -7 -------- Run | Yrd Mat Mat Min Mat Fac Hostile Shots Fired 638 | . 14 96 85 150 293 Missed 187 | . 3 28 18 45 93 Damage Taken 6882 | . 108 838 1901 1577 2458 Core 598 | . 12 139 148 188 111 Absorbed by Shields 288 | . . . . 32 256 Core Remaining (%) 72 | 100 95 . 28 65 . Volleys Fired 365 | . 14 74 46 129 102 Largest 3 | . 2 2 2 2 3 Hottest 96 | . 40 56 63 96 95 Shots Fired 777 | . 28 148 90 237 274 Gun 582 | . 28 138 67 78 271 Cannon 149 | . . . . 149 . Launcher 46 | . . 10 23 10 3 Special . | . . . . . . Kinetic 731 | . 28 138 67 227 271 Thermal . | . . . . . . Explosive 46 | . . 10 23 10 3 Electromagnetic . | . . . . . . Robot Hit Streak 17 | . 5 12 7 8 17 Robot Miss Streak 7 | . 2 4 4 5 7 Penetration Max 1 | . . . . 1 . Secondary Targets 8 | . . 1 3 . 4 Max Gunslinging Chain 1 | . . 1 1 . 1 Shots Hit Robots 492 | . 16 90 51 136 199 Core Hits 277 | . 10 57 51 78 81 Critical Kills 1 | . . . . . 1 Critical Parts Destroyed 5 | . . . 1 . 4 Critical Strikes 27 | . . . 2 20 5 Destroy 3 | . . . 2 . 1 Blast 20 | . . . . 20 . Smash 4 | . . . . . 4 Melee Attacks 31 | . . . . . 31 Impact 31 | . . . . . 31 Slashing . | . . . . . . Piercing . | . . . . . . Sneak Attacks 4 | . . . . . 4 Combat Hostiles . | . . . . . . Follow-up Attacks . | . . . . . . Damage Inflicted 12598 | . 176 1875 1555 4084 4908 Guns 6023 | . 176 1150 578 675 3444 Cannons 2397 | . . . . 2397 . Explosions 3200 | . . 725 977 1012 486 Melee 919 | . . . . . 919 Ramming 59 | . . . . . 59 Kinetic 8420 | . 176 1150 578 3072 3444 Thermal . | . . . . . . Explosive 3200 | . . 725 977 1012 486 Electromagnetic . | . . . . . . Impact 919 | . . . . . 919 Slashing . | . . . . . . Piercing . | . . . . . . Highest Corruption 5 | . . . . . 5 Average Corruption 3 | . . . . . 3 Corruption Purged . | . . . . . . Corruption Blocked . | . . . . . . Effects 35 | . . . . . 35 Message Errors 10 | . . . . . 10 Matter Fused 6 | . . . . . 6 Heat Flow Errors 4 | . . . . . 4 Data Loss (minor) 4 | . . . . . 4 Data Loss (major) 2 | . . . . . 2 Misfires 4 | . . . . . 4 Alerts 1 | . . . . . 1 Weapon Failures 4 | . . . . . 4 Overload Shots . | . . . . . . Overflow Damage 566 | . . 4 48 61 453 Projectiles 29 | . . . . 29 . Explosions 101 | . . 4 48 32 17 Melee 436 | . . . . . 436 Knockbacks 18 | . . . . 11 7 Impact 7 | . . . . . 7 Kinetic 11 | . . . . 11 . Secondary . | . . . . . . Self-Inflicted Damage 157 | . . . 32 114 11 Shots 6 | . . . 2 4 . Rammed 11 | . . . . . 11 Targets Rammed 11 | . . . . . 11 Kicked . | . . . . . . Crushed . | . . . . . . Highest Temperature 525 | . 16 57 105 116 525 Average Temperature 79 | . 7 22 32 24 135 Received Heat Transfer 1668 | . 30 273 144 542 679 Effects 5 | . . . . . 5 Shutdowns 2 | . . . . . 2 Interference 2 | . . . . . 2 Matter Decay 1 | . . . . . 1 Siege Activations . | . . . . . . Robots Corrupted . | . . . . . . Combat Hostiles . | . . . . . . Parts Fried 4 | . . . . . 4 Impact Corruptions 18 | . . . . . 18 Robots Melted . | . . . . . . Combat Hostiles . | . . . . . . Parts Melted . | . . . . . . Heat Transferred . | . . . . . . Parts Sabotaged . | . . . . . . Parts Stolen . | . . . . . . Parts Stripped . | . . . . . . Power Chain Reactions . | . . . . . . Alert | -11 -10 -9 -9 -8 -7 ------- Run | Yrd Mat Mat Min Mat Fac Peak Influence 585 | . 117 557 331 585 462 Initial 266 | . . . 120 . 266 Average 235 | . 61 340 145 234 234 Maximum Alert Level 2 | . . 2 1 2 2 Low Security (%) 41 | 100 100 16 66 39 39 Level 1 44 | . . 41 33 48 54 Level 2 14 | . . 41 . 12 6 Level 3 . | . . . . . . Level 4 . | . . . . . . Level 5 . | . . . . . . High Security . | . . . . . . Max Security . | . . . . . . Squads Dispatched 19 | . 1 3 1 4 10 Investigation 6 | . . 1 1 1 3 Extermination 5 | . . . . . 5 Reinforcement 8 | . 1 2 . 3 2 Assault . | . . . . . . Garrison . | . . . . . . Intercept . | . . . . . . Searches Triggered . | . . . . . . Construction Impeded 2 | . . 1 . 1 . Haulers Reinforced . | . . . . . . Active Scanning Responses . | . . . . . . Cargo Convoy Interrupts 1 | . . . . . 1 Stealth | -11 -10 -9 -9 -8 -7 --------- Run | Yrd Mat Mat Min Mat Fac Distress Signals 7 | . 1 3 . 2 1 Communications Jammed . | . . . . . . Distress Signals . | . . . . . . Times Spotted 176 | . 12 34 26 45 59 Peak Tracking Total 9 | . 3 5 9 9 7 Tactical Retreats 9 | . 2 1 1 1 4 Traps | -11 -10 -9 -9 -8 -7 ------- Run | Yrd Mat Mat Min Mat Fac Traps Triggered 3 | . . . . 1 2 Indirectly . | . . . . . . Trap Hack Attempts . | . . . . . . Triggered . | . . . . . . Disarmed . | . . . . . . Reprogrammed . | . . . . . . Reused . | . . . . . . Traps Extracted . | . . . . . . Installed . | . . . . . . Triggered 6 | . . . . . 6 Machines | -11 -10 -9 -9 -8 -7 ---------- Run | Yrd Mat Mat Min Mat Fac Machines Disabled 10 | . . 1 1 7 1 Max in Single Turn 1 | . . 1 1 1 1 Garrison Access 1 | . . . . 1 . Machines Repaired . | . . . . . . Machines Dismantled . | . . . . . . Machines Sabotaged . | . . . . . . Overloaded Fab Kills . | . . . . . . Hacking | -11 -10 -9 -9 -8 -7 --------- Run | Yrd Mat Mat Min Mat Fac Machines Accessed 19 | . 3 5 1 5 5 Terminals 16 | . 3 4 1 4 4 Fabricators 1 | . . . . . 1 Repair Stations . | . . . . . . Recycling Units . | . . . . . . Scanalyzers 1 | . . 1 . . . Garrison Access 1 | . . . . 1 . Total Hacks 54 | . 8 17 4 13 12 Successful 28 | . 5 11 1 6 5 Failed 26 | . 3 6 3 7 7 Catastrophic 5 | . . . 1 3 1 Database Lockouts . | . . . . . . Manual 12 | . . 4 3 2 3 Terminals 47 | . 8 14 4 10 11 Fabricators 1 | . . . . . 1 Repair Stations . | . . . . . . Recycling Units . | . . . . . . Scanalyzers 3 | . . 3 . . . Garrison Access 3 | . . . . 3 . Terminal Hacks 22 | . 5 8 1 4 4 Record 1 | . . . 1 . . Part Schematic 4 | . . 3 . 1 . Branch Access Points 2 | . 1 1 . . . Alert Level 6 | . 1 3 . 2 . Unreport Threat 3 | . 2 . . . 1 Locate Traps 2 | . . . . . 2 Patrol Status 1 | . 1 . . . . Zone Layout 3 | . . 1 . 1 1 Fabricator Hacks 1 | . . . . . 1 Build 1 | . . . . . 1 Repair Station Hacks . | . . . . . . Recycling Unit Hacks . | . . . . . . Scanalyzer 3 | . . 3 . . . Insert Component 1 | . . 1 . . . Analyze 2 | . . 2 . . . Garrison Access Hacks 1 | . . . . 1 . Seal Access 1 | . . . . 1 . Unauthorized Hacks 1 | . . . . 1 . Terminals 1 | . . . . 1 . Botnet 1 | . . . . 1 . Fabricators . | . . . . . . Repair Stations . | . . . . . . Recycling Units . | . . . . . . Scanalyzers . | . . . . . . Garrison Access . | . . . . . . Data Cores Recovered 1 | . . . . 1 . Used . | . . . . . . Hacking Detections 16 | . 2 4 1 5 4 Full Trace Events 4 | . . 1 1 . 2 Feedback Events . | . . . . . . Feedback Blocked . | . . . . . . Robot Schematics Acquired . | . . . . . . Robots Built . | . . . . . . Authchips . | . . . . . . Time . | . . . . . . Total Robot Build Rating . | . . . . . . Part Schematics Acquired 5 | . . 4 . 1 . Parts Built 1 | . . . . . 1 Authchips . | . . . . . . Time 95 | . . . . . 95 Total Part Build Rating 5 | . . . . . 5 Parts Repaired . | . . . . . . Time . | . . . . . . Parts Recycled . | . . . . . . Recycled Matter . | . . . . . . Retrieved Matter . | . . . . . . Retrieved Components . | . . . . . . Parts Scanalyzed 1 | . . 1 . . . Part Schematics Acquired 1 | . . 1 . . . Parts Damaged . | . . . . . . Bothacking | -11 -10 -9 -9 -8 -7 ------------ Run | Yrd Mat Mat Min Mat Fac Used RIF Installer . | . . . . . . Robots Hacked . | . . . . . . Non-combat . | . . . . . . Combat . | . . . . . . Robot Hacks Applied . | . . . . . . Relay Couplers Released . | . . . . . . Fabnet Peak Effective % . | . . . . . . Robots Rewired . | . . . . . . Allies Hacked . | . . . . . . Hacks Repelled . | . . . . . . Allies | -11 -10 -9 -9 -8 -7 -------- Run | Yrd Mat Mat Min Mat Fac Total Allies . | . . . . . . Largest Group . | . . . . . . Highest-Rated Group . | . . . . . . Highest-Rated Ally . | . . . . . . Total Orders . | . . . . . . Ally Attacks . | . . . . . . Total Damage . | . . . . . . Kills . | . . . . . . Allies Corrupted . | . . . . . . Allies Melted . | . . . . . . Intel | -11 -10 -9 -9 -8 -7 ------- Run | Yrd Mat Mat Min Mat Fac Robot Analysis Total . | . . . . . . Derelict Logs Recovered 1 | . . . 1 . . Drone Launches . | . . . . . . Drone Recoveries . | . . . . . . Exploration | -11 -10 -9 -9 -8 -7 ------------- Run | Yrd Mat Mat Min Mat Fac Turns Passed 8157 | 60 406 1781 1018 2338 2554 Spaces Moved 3352 | 34 151 636 349 876 1306 Core 3 | 3 . . . . . Treads 1716 | 31 151 636 349 528 21 Legs . | . . . . . . Wheels 1633 | . . . . 348 1285 Hover . | . . . . . . Flight . | . . . . . . Fastest Speed 50 | 50 160 160 246 145 115 Average Speed 194 | 150 218 236 247 204 151 Slowest Speed 570 | 160 240 320 330 325 570 Overloaded Moves . | . . . . . . Propulsion Burnouts . | . . . . . . Robots Hopped . | . . . . . . Cave-ins Triggered . | . . . . . . Exploration Rate (%) 46 | 3 29 61 75 83 29 Regions Visited 5 Branch Regions 1 Pre-discovered Areas . | . . . . . . Known Exits Taken 2 | . . 1 . 1 . Unknown Exits Taken 3 | 1 1 . 1 . . Scrap Searched 1 | . . . 1 . . Spaces Dug 5 | . . . . 5 . Terrain Destroyed 287 | . . 56 123 100 8 Melee . | . . . . . . Projectile 62 | . . . . 62 . AOE 225 | . . 56 123 38 8 Terrain Rammed . | . . . . . . Walls Destroyed . | . . . . . . Machines Disabled . | . . . . . . Actions | -11 -10 -9 -9 -8 -7 --------- Run | Yrd Mat Mat Min Mat Fac Total 4269 | 40 202 763 412 1189 1663 Wait 287 | . 30 17 2 105 133 Move 3347 | 33 150 635 348 875 1306 Hop . | . . . . . . Pick Up 66 | 1 4 14 2 28 17 Fast Attach 33 | 6 1 5 . 15 6 Attach 22 | . . . 7 4 11 Detach . | . . . . . . Swap 47 | . 1 12 7 8 19 Drop 44 | . 2 6 . 25 11 Fire 365 | . 14 74 46 129 102 Melee 31 | . . . . . 31 Ram 2 | . . . . . 2 Kick . | . . . . . . Crush 9 | . . . . . 9 Escape Stasis 16 | . . . . . 16 Rewire . | . . . . . . Trap . | . . . . . . Miscellaneous . | . . . . . . Route ------- -11/Scrapyard -10/Materials (discovered 2 exits: *Mat / Min) -9/Materials (discovered 4 exits: *Mat / *Min x2 / *Sto) -9/Mines -8/Materials (discovered 2 exits: *Fac x2) -7/Factory History --------- Turn | Location | Event 11 | -11/Scrapyard | Discovered new exit (range 15) 61 | -11/Scrapyard | Entered Materials 224 | -10/Materials | Identified exit to Mines 305 | -10/Materials | Build established: Mutant 395 | -10/Materials | Discovered new exit (range 15) 467 | -10/Materials | Entered another Materials area 467 | -9/Materials | Evolved 2 slots: Propulsion x1, Utility x1 703 | -9/Materials | Discovered new exit (range 16) 954 | -9/Materials | Destroyed 8 combat bots 1001 | -9/Materials | Discovered new exit (range 15) 1235 | -9/Materials | Build established: Scavenger-Mutant 1676 | -9/Materials | Build established: Mutant 2059 | -9/Materials | Discovered new exit (range 16) 2061 | -9/Materials | Identified exit to Mines 2061 | -9/Materials | Identified exit to Storage 2248 | -9/Materials | Entered Mines 2457 | -9/Mines | Learned location of 1 exit from Materials 2468 | -9/Mines | Assembled infested the area 2518 | -9/Mines | Destroyed 10 combat bots 2524 | -9/Mines | Core integrity fell below 50% 2603 | -9/Mines | Lost 8 parts (1p2n1u4w) 2805 | -9/Mines | Found a hidden stash of uninstalled traps 2983 | -9/Mines | Found a damaged Exp. Sensor Array with a note attached 2988 | -9/Mines | Found Prototype Device 3244 | -9/Mines | Discovered new exit (range 9) 3266 | -9/Mines | Entered Materials 3266 | -8/Materials | Evolved 2 slots: Propulsion x1, Utility x1 3267 | -8/Materials | Identified exit to Factory 3568 | -8/Materials | Build established: Scavenger-Mutant 4199 | -8/Materials | Destroyed 7 combat bots 4768 | -8/Materials | Build established: Mutant 5524 | -8/Materials | Identified Exp. Sensor Array 5553 | -8/Materials | Discovered exit to Factory (range 11) 5604 | -8/Materials | Entered Factory 5604 | -7/Factory | Evolved 2 slots: Power x1, Weapon x1 5913 | -7/Factory | Build established: Skirmisher 6634 | -7/Factory | Build established: Mutant 6753 | -7/Factory | Cargo convoy interrupted 6996 | -7/Factory | Lost 5 parts (1p3u1w) 7308 | -7/Factory | Build established: Tank 8084 | -7/Factory | Fabricated Hpw. Shock Rifle? 8158 | -7/Factory | Self-destructed Last Messages --------------- 08145_ K-01 Serf collects debris. 08147_ R-06 Scavenger collects Imp. Heat Sink. 08148_ K-01 Serf collects debris. 08149_ G-47 Trooper destroyed. 08149_ Switching to secondary target: G-47 Trooper. 08150_ K-01 Serf collects debris. 08150_ U-05 Engineer lays Concrete. 08151_ R-06 Scavenger collects Particle Gun. 08152_ K-01 Serf cleans the Subcomponent Replicator. 08153_ G-47 Trooper destroyed. 08153_ K-01 Serf collects debris. 08153_ U-05 Engineer lays Concrete. 08154_ R-06 Scavenger collects Aluminum Leg. 08154_ U-05 Engineer lays Concrete. 08155_ U-05 Engineer builds a Wall. 08156_ K-01 Serf collects debris. 08157_ R-06 Scavenger collects Lgt. Nuclear Core. Map ----- +----------------------------------------------------+ | ?????????????????????????????????????????????????? | | ?????????????????????????????????????????????????? | | ?????????????????????????????????????????????????? | | ?????????????????????????????????????????????????? | | ?????????????????????????????????????????????????? | | ?????????????????????????????????????????????????? | | ?????????????????????????????????????????????????? | | ?????????????????????????????????????????????????? | | ##########???????????????????????????????????????? | | # ????????????????????????????????????????? | | # #????????????????????????????????????????? | | # #????????????????????????????????????????? | | # #????????????????????????????????????????? | | # ################?????????????????????????? | | # """ #?????????????????????????? | | # "T" #?????????????????????????? | | # """"""" #?????????????????????????? | | # """"""" ##### #?????????????????????????? | | """"""" #???# #?????????????????????????? | | # """"""" #???#!#?????????????????????????? | | # #???# #?????????????????????????? | | # #####+############+##+##????????? | | #### # =%*t # #????????? | | ???# #### =*[k u# ###+#????? | | ???# ### ######### [ =!% # ???? | | ???# #?# #= # r @!%=u# ?????? | | ####+### # # "" %"" ![=!+ ?????? | | # # # "" k"" % # ?????? | | # # ] # """ """ # ???? | | + + # """%""" # #####????? | | """""" # # # """g"""g # #????????? | | """""" # # # g ###########????????? | | """"""=# # # #??????????????????? | | """"""!# # # ! #??????????????????? | | ! # # !###/##########???????????"""?"""? | | ######## # ### ###??????????????????"""?"""? | | ???????# ####+#### #########??????????"""?"""? | | ???????# ### #???????????????? | | ???????# T ???"""?"""? | | ########^ ### ###??????"""?"""? | | ! ## ^ #?# ###########????????"""?"""? | | "" # #?#######?????????????????????????? | | "F + #?????????????????????????????????? | | "" # #???"""?"""???????????????????????? | | "" ## #???"T"?"""???????????????????????? | | ## #?????"""???????????????????????? | | ######## #???????????????????????????????? | | ???????# #???????????????????????????????? | | ???????# ??????????????????????????????? | | ???????# ##### #????????????????????????????? | +----------------------------------------------------+ Best States ------------- Heat Dissipation 61 Coolant Potential 50 Energy Generation 27 Energy Capacity 480 Matter Stores 500 Matter Capacity 500 Sight Range 16 Robot Scan Range 20 Terrain Scan Density 10 Armor Coverage 675 Evasion (%) 40 Recoil Reduction 4 Kinecelleration 30 Item Schematics ----------------- Lrg. Storage Unit | -9/Materials | Hacked Huge Storage Unit | -9/Materials | Hacked Hcp. Storage Unit | -9/Materials | Hacked Plasma Cutter | -9/Materials | Scanalyzed Hpw. Tractor Beam | -8/Materials | Hacked Robot Schematics ------------------ None Fabricated ------------ Hpw. Shock Rifle | x1 | -7/Factory | Preloaded Alien Tech Used ----------------- None Achievements -------------- None Challenges ------------ None Game ------ Seed ColdHoverRefractor Manual? 0 Play Time 00:51:24 Cumulative 101.4 hours Start 2024.04.17 @ 18:02:52 End 2024.04.18 @ 10:12:55 Sessions 5 Manual Loads 0 Difficulty Rogue Special Mode None Game No. 127 Rogue 127 Adventurer 0 Explorer 0 Win Type - Total 1 Types 1/0/0/0/0/0/0/0/0 Lore% 43 Gallery% 50 Achievement% 48 Wizard Run 0 Options --------- Layout 1 ASCII 0 Keyboard 0 Movement Mouse Keybinds 0 Fullscreen 2 Font 32/Smallcaps Map View 50x40 Zoom Use 0% Tactical HUD 1 Map Filters NONE Filters NONE Steam 1 RUN: 6ccb6648-1db8-409f-a663-78bc9d8ad329